bitfinex/quotes_BTCUSD_20230403
["timestamp","ask_amount","ask_price","bid_price","bid_amount"]
[1680545717504,0.025293,27982.0,27978.0,0.83189056]
[1680545717766,0.012508,27981.0,27978.0,0.83189056]
[1680545718041,0.026716,27980.0,27979.0,0.019]
[1680545718327,0.03743892,27980.0,27978.0,1.20761056]
[1680545718573,0.012508,27980.0,27978.0,1.21361056]
[1680545718848,0.012508,27980.0,27978.0,1.20761056]
[1680545720021,0.0233918,27979.0,27978.0,0.83171056]
[1680545720226,0.20281561,27979.0,27977.0,0.00012]
[1680545720525,0.023917,27978.0,27976.0,0.00018]
[1680545720723,0.01251,27977.0,27975.0,0.0209]
[1680545721097,0.01072467,27977.0,27975.0,0.0209]
[1680545721296,0.01072467,27977.0,27976.0,0.001]
[1680545721723,0.01072467,27977.0,27975.0,0.0209]
[1680545722145,0.01251,27977.0,27975.0,0.0209]
[1680545723209,0.0107246,27977.0,27975.0,0.0209]
[1680545724246,0.01251,27977.0,27975.0,0.0209]
[1680545725231,0.0107246,27977.0,27975.0,0.0209]
[1680545726232,0.01251,27977.0,27975.0,0.0209]
[1680545727133,0.0107246,27977.0,27975.0,0.0209]
[1680545728301,0.01251,27977.0,27975.0,0.0209]
[1680545729274,0.0107246,27977.0,27975.0,0.0209]
[1680545730132,0.01251,27977.0,27975.0,0.0209]
[1680545731191,0.0107246,27977.0,27975.0,0.0209]
[1680545732263,0.01251,27977.0,27975.0,0.0209]
[1680545733406,0.0107246,27977.0,27975.0,0.0209]
[1680545733680,0.024336,27976.0,27975.0,0.0209]
[1680545733909,0.0107246,27977.0,27975.0,0.0209]
[1680545734369,0.01951,27977.0,27975.0,0.0219]
[1680545734607,0.023838,27976.0,27975.0,0.0209]
[1680545734836,0.030838,27976.0,27975.0,0.0219]
[1680545735305,0.0290526,27976.0,27975.0,0.0229]
[1680545735527,0.01951,27977.0,27975.0,0.0209]
[1680545735528,0.01251,27977.0,27975.0,0.0209]
[1680545735783,0.01251,27978.0,27975.0,0.0209]
[1680545736006,0.075054,27980.0,27975.0,0.0209]
[1680545736007,0.036385,27977.0,27975.0,0.0209]
[1680545736231,0.01072453,27977.0,27975.0,0.0209]
[1680545736458,0.01251,27978.0,27975.0,0.0209]
[1680545736689,0.035091,27977.0,27975.0,0.0209]
[1680545736920,0.01251,27977.0,27975.0,0.0209]
[1680545737148,0.01072467,27977.0,27975.0,0.0209]
[1680545737377,0.01251,27978.0,27975.0,0.0209]
[1680545737610,0.024013,27977.0,27975.0,0.0209]
[1680545738066,0.035057,27978.0,27975.0,0.0209]
[1680545738296,0.02869067,27977.0,27975.0,0.0219]
[1680545738554,0.023352,27976.0,27975.0,0.0219]
[1680545739024,0.023352,27976.0,27975.0,0.0209]
[1680545739250,0.01251,27978.0,27975.0,0.0209]
[1680545739520,0.02335,27977.0,27975.0,0.0209]
[1680545739991,0.089209,27979.0,27975.0,0.0209]
[1680545739992,0.029565,27978.0,27975.0,0.0209]
[1680545740235,0.006,27978.0,27976.0,0.04209]
[1680545740704,0.0767,27979.0,27976.0,0.04209]
[1680545740931,0.006,27977.0,27976.0,0.04209]
[1680545741119,0.0767,27979.0,27976.0,0.04209]
[1680545741368,0.00421467,27978.0,27977.0,0.006299]
[1680545741817,0.089209,27979.0,27977.0,0.006299]
[1680545742270,0.089209,27979.0,27976.0,0.04209]
[1680545742714,0.089209,27979.0,27975.0,0.0209]
[1680545743882,0.089209,27979.0,27975.0,0.0279]
[1680545744111,0.089209,27979.0,27975.0,0.0209]
[1680545744310,0.08742373,27979.0,27975.0,0.0339]
[1680545744546,0.08742373,27979.0,27975.0,0.0209]
[1680545744782,0.08742373,27979.0,27975.0,0.0279]
[1680545745244,0.08563846,27979.0,27975.0,0.0279]
[1680545745702,0.08563846,27979.0,27973.0,1.11144821]
[1680545745965,0.22771527,27979.0,27975.0,0.4]
[1680545746193,0.08485319,27979.0,27975.0,0.01218]
[1680545746425,0.08485319,27979.0,27974.0,0.35489056]
[1680545746426,0.08385319,27979.0,27974.0,0.35489056]
[1680545746664,0.22675,27979.0,27974.0,0.00018]
[1680545747137,0.08385319,27979.0,27974.0,0.00018]
[1680545747369,0.08206792,27979.0,27975.0,0.00012778]
[1680545747603,0.08306792,27979.0,27975.0,0.01212778]
[1680545747836,0.08206792,27979.0,27975.0,0.00012778]
[1680545748069,0.08306792,27979.0,27975.0,0.00012778]
[1680545748304,0.08324792,27979.0,27974.0,0.01038712]
[1680545748552,0.08324792,27979.0,27974.0,0.41038712]
[1680545748783,0.08324792,27979.0,27974.0,0.01038712]
[1680545749016,0.08224792,27979.0,27973.0,0.71144821]
[1680545749245,0.23150581,27979.0,27975.0,0.01212778]
[1680545749461,0.088609,27979.0,27975.0,0.00012778]
[1680545749754,0.089609,27979.0,27975.0,0.00012778]
[1680545750032,0.088609,27979.0,27975.0,0.00012778]
[1680545750307,0.08782373,27979.0,27974.0,0.00018]
[1680545750578,0.08682373,27979.0,27975.0,0.006]
[1680545751318,0.088609,27979.0,27975.0,0.00012778]
[1680545751796,0.0761,27979.0,27975.0,0.00012778]
[1680545752256,0.07431473,27979.0,27975.0,0.35471056]
[1680545752477,0.07431473,27979.0,27975.0,0.36089056]
[1680545753160,0.07252946,27979.0,27975.0,0.36089056]
[1680545753383,0.08503846,27979.0,27975.0,0.36089056]
[1680545754071,0.08325319,27979.0,27975.0,0.36089056]
[1680545754970,0.08325319,27979.0,27975.0,0.00618]
[1680545755190,0.08325319,27979.0,27975.0,0.006]
[1680545755418,0.12763264,27979.0,27975.0,0.006]
[1680545755873,0.08325319,27979.0,27975.0,0.006]
[1680545757017,0.08343319,27979.0,27973.0,0.52901675]
[1680545757233,0.23110581,27979.0,27973.0,0.73079056]
[1680545758139,0.23132054,27979.0,27974.0,0.00025556]
[1680545758359,0.08942373,27979.0,27974.0,0.00043556]
[1680545759020,0.08742373,27979.0,27974.0,0.00043556]
[1680545759021,0.08760373,27979.0,27974.0,0.012]
[1680545759245,0.090209,27979.0,27974.0,0.01218]
[1680545760181,0.08842373,27979.0,27974.0,0.01218]
[1680545761094,0.08663846,27979.0,27974.0,0.01218]
[1680545761802,0.0767,27978.0,27974.0,0.01218]
[1680545762073,0.01251,27977.0,27974.0,0.01218]
[1680545762307,0.01072473,27977.0,27974.0,0.012]
[1680545762545,0.51440615,27976.0,27974.0,0.012]
[1680545764950,0.478999,27975.0,27972.0,0.0229]
[1680545765212,0.0767,27973.0,27972.0,0.0229]
[1680545765491,0.137504,27973.0,27972.0,0.0229]
[1680545765762,0.060804,27973.0,27972.0,0.0229]
[1680545766307,0.05901828,27973.0,27972.0,0.0231556]
[1680545766846,0.07801828,27973.0,27972.0,0.0231556]
[1680545767357,0.079804,27973.0,27972.0,0.0231556]
[1680545768408,0.09863115,27973.0,27972.0,0.0231556]
[1680545768677,0.07801835,27973.0,27972.0,0.0231556]
[1680545769270,0.15293002,27973.0,27972.0,0.0231556]
[1680545769948,0.042268,27973.0,27972.0,0.0231556]
[1680545770176,0.05478,27973.0,27972.0,0.0229]
[1680545771341,0.05478,27973.0,27972.0,0.0231556]
[1680545771833,0.13148,27973.0,27972.0,0.0231556]
[1680545773826,0.1598227,27973.0,27972.0,0.0231556]
[1680545774260,0.1598227,27973.0,27972.0,0.0229]
[1680545774261,0.13148,27973.0,27972.0,0.0229]
[1680545775167,0.8802727,27973.0,27972.0,0.0229]
[1680545775402,0.9066415,27973.0,27972.0,0.0229]
[1680545775660,2.39367878,27973.0,27972.0,0.0229]
[1680545775876,2.39498078,27973.0,27972.0,0.0229]
[1680545776099,2.27258998,27973.0,27972.0,0.0209]
[1680545776320,0.48936,27973.0,27972.0,0.0209]
[1680545776545,0.51636,27973.0,27972.0,0.0209]
[1680545777000,0.8125527,27973.0,27972.0,0.0209]
[1680545777218,0.7169527,27973.0,27972.0,0.0209]
[1680545777440,0.91268107,27973.0,27972.0,0.0209]
[1680545777906,0.61250107,27973.0,27972.0,0.0209]
[1680545778142,0.4167727,27973.0,27972.0,0.0209]
[1680545778370,0.4437727,27973.0,27972.0,0.0209]
[1680545781556,0.14758,27973.0,27972.0,0.0209]
[1680545781750,0.06278,27973.0,27972.0,0.0209]
[1680545781969,0.4660854,27973.0,27972.0,0.0209]
[1680545783555,0.4437727,27973.0,27972.0,0.0209]
[1680545784265,0.06278,27973.0,27972.0,0.0209]
[1680545784509,0.027,27973.0,27972.0,0.0209]
[1680545785097,0.04853,27973.0,27972.0,0.0209]
[1680545785368,0.04853,27973.0,27972.0,0.0211556]
[1680545785609,0.02153,27973.0,27972.0,0.0211556]
[1680545785854,0.013,27973.0,27972.0,0.0211556]
[1680545786075,0.012511,27975.0,27972.0,0.0211556]
[1680545786312,0.021701,27974.0,27972.0,0.0211556]
[1680545786525,0.034212,27974.0,27972.0,0.0211556]
[1680545786750,0.023229,27973.0,27972.0,0.0211556]
[1680545786997,0.043229,27973.0,27972.0,0.0211556]
[1680545787242,0.023229,27973.0,27972.0,0.0211556]
[1680545787919,0.02,27973.0,27972.0,0.0211556]
[1680545788156,0.022704,27973.0,27972.0,0.0211556]
[1680545788356,0.013,27973.0,27972.0,0.0211556]
[1680545788637,0.023296,27973.0,27972.0,0.0211556]
[1680545788863,0.043296,27973.0,27972.0,0.0211556]
[1680545789823,0.023296,27973.0,27972.0,0.0211556]
[1680545790063,0.036296,27973.0,27972.0,0.0211556]
[1680545790331,0.035808,27973.0,27972.0,0.0211556]
[1680545790622,0.055808,27973.0,27972.0,0.0211556]
[1680545790903,0.0438911,27973.0,27972.0,0.0211556]
[1680545791353,0.0568911,27973.0,27972.0,0.0211556]
[1680545791360,0.0438911,27973.0,27972.0,0.0211556]
[1680545791607,0.3600838,27973.0,27972.0,0.0211556]
[1680545791888,0.3600838,27973.0,27972.0,0.02106795]
[1680545791889,2.4221619,27973.0,27972.0,0.02106795]
[1680545792156,2.5257327,27973.0,27972.0,0.02106795]
[1680545792429,3.0803827,27973.0,27972.0,0.02081235]
[1680545792725,3.0710139,27973.0,27972.0,0.02081235]
[1680545793534,3.0980139,27973.0,27972.0,0.02081235]
[1680545793767,3.0710139,27973.0,27972.0,0.02081235]
[1680545794006,3.0980139,27973.0,27972.0,0.02081235]
[1680545794480,2.9192639,27973.0,27972.0,0.02081235]
[1680545797089,2.9192639,27973.0,27972.0,0.01903038]
[1680545797090,3.0908639,27973.0,27972.0,0.01903038]
[1680545797320,3.0906839,27973.0,27972.0,0.01903038]
[1680545798007,2.9190839,27973.0,27972.0,0.01903038]
[1680545798229,3.0906839,27973.0,27972.0,0.01903038]
[1680545798467,2.9190839,27973.0,27972.0,0.01903038]
[1680545798940,3.0906839,27973.0,27972.0,0.01903038]
[1680545799182,2.9190839,27973.0,27972.0,0.01903038]
[1680545799407,3.0906839,27973.0,27972.0,0.01903038]
[1680545799630,2.9025008,27973.0,27972.0,0.01903038]
[1680545799857,2.25005481,27973.0,27972.0,0.01903038]
[1680545800087,2.25087681,27973.0,27972.0,0.01903038]
[1680545800760,2.16535481,27973.0,27972.0,0.01903038]
[1680545801218,2.25087681,27973.0,27972.0,0.01903038]
[1680545801947,2.34555111,27973.0,27972.0,0.01903038]
[1680545803583,2.72995111,27973.0,27972.0,0.01903038]
[1680545805435,2.7727157,27973.0,27972.0,0.01903038]
[1680545806336,3.23756643,27973.0,27972.0,0.01903038]
[1680545806594,2.77265581,27973.0,27972.0,0.01903038]
[1680545806790,2.94345678,27973.0,27972.0,0.01903038]
[1680545807007,3.02895581,27973.0,27972.0,0.01903038]
[1680545807242,2.85735581,27973.0,27972.0,0.01903038]
[1680545808122,2.83035581,27973.0,27972.0,0.01903038]
[1680545808342,2.85735581,27973.0,27972.0,0.01903038]
[1680545809226,3.03609581,27973.0,27972.0,0.01903038]
[1680545809923,2.95139581,27973.0,27972.0,0.01903038]
[1680545810370,3.24550099,27973.0,27972.0,0.01903038]
[1680545810845,3.24550099,27973.0,27968.0,0.0209]
[1680545810846,0.2146,27969.0,27968.0,0.0209]
[1680545810850,0.2146,27969.0,27966.0,0.0209]
[1680545810851,0.2,27967.0,27966.0,0.01119585]
[1680545811082,2.88092653,27967.0,27966.0,0.01119585]
[1680545811318,3.47491841,27967.0,27966.0,0.01119585]
[1680545811558,3.51725981,27967.0,27966.0,0.01119585]
[1680545811806,2.92034158,27967.0,27966.0,0.01119585]
[1680545812037,2.34625417,27967.0,27966.0,0.01119585]
[1680545812271,2.01743375,27967.0,27966.0,0.01119585]
[1680545812508,1.66853375,27967.0,27966.0,0.01119585]
[1680545812734,1.64153375,27967.0,27966.0,0.01119585]
[1680545812966,1.95712659,27967.0,27966.0,0.01119585]
[1680545813649,2.25712659,27967.0,27966.0,0.01119585]
[1680545813906,2.23012659,27967.0,27966.0,0.01119585]
[1680545814130,1.96841765,27967.0,27966.0,0.01119585]
[1680545814361,1.66841765,27967.0,27966.0,0.01119585]
[1680545814599,2.06841765,27967.0,27966.0,0.01119585]
[1680545816870,2.04141765,27967.0,27966.0,0.01119585]
[1680545817116,2.06841765,27967.0,27966.0,0.01119585]
[1680545817340,2.38272239,27967.0,27966.0,0.01119585]
[1680545817596,3.02408239,27967.0,27966.0,0.01119585]
[1680545817796,3.32408239,27967.0,27966.0,0.01119585]
[1680545818027,3.78334861,27967.0,27966.0,0.01119585]
[1680545818566,3.75634861,27967.0,27966.0,0.01119585]
[1680545820363,3.78334861,27967.0,27966.0,0.01119585]
[1680545820840,3.75634861,27967.0,27966.0,0.01119585]
[1680545821137,3.78334861,27967.0,27966.0,0.01119585]
[1680545821364,3.58468861,27967.0,27966.0,0.01119585]
[1680545821585,3.78334861,27967.0,27966.0,0.01119585]
[1680545821807,3.12622239,27967.0,27966.0,0.01119585]
[1680545822038,2.75242239,27967.0,27966.0,0.01119585]
[1680545822774,2.72542239,27967.0,27966.0,0.01119585]
[1680545823007,2.42961765,27967.0,27966.0,0.01119585]
[1680545824434,2.05371765,27967.0,27966.0,0.01119585]
[1680545825362,1.7586601,27967.0,27966.0,0.01119585]
[1680545825580,1.6733601,27967.0,27966.0,0.01119585]
[1680545826285,1.67157407,27967.0,27966.0,0.01119585]
[1680545826941,0.36275697,27967.0,27966.0,0.01119585]
[1680545827168,0.064543,27967.0,27966.0,0.01119585]
[1680545827882,0.027,27967.0,27966.0,0.01119585]
[1680545828149,0.03772797,27967.0,27966.0,0.01119585]
[1680545828434,0.02521397,27967.0,27966.0,0.01119585]
[1680545828667,0.012514,27968.0,27966.0,0.01119585]
[1680545828892,0.026,27967.0,27966.0,0.01119585]
[1680545829117,0.012514,27967.0,27966.0,0.01119585]
[1680545829361,0.03267997,27967.0,27966.0,0.02294344]
[1680545829587,0.018514,27967.0,27966.0,0.21219585]
[1680545829811,0.31357154,27967.0,27966.0,0.21219585]
[1680545830110,0.33624654,27967.0,27966.0,0.01237585]
[1680545830375,0.33624654,27967.0,27966.0,0.01219585]
[1680545830376,1.66058242,27967.0,27966.0,0.01219585]
[1680545830607,1.66076242,27967.0,27966.0,0.01219585]
[1680545830843,1.82619398,27967.0,27966.0,0.01219585]
[1680545831058,1.92400798,27967.0,27966.0,0.01219585]
[1680545831308,1.92400798,27967.0,27960.0,0.58885326]
[1680545831309,2.10118193,27967.0,27960.0,0.58885326]
[1680545831531,2.05906479,27966.0,27960.0,0.58885326]
[1680545831752,1.57310593,27965.0,27960.0,0.57885326]
[1680545831980,0.02311,27964.0,27960.0,0.57885326]
[1680545832206,0.21194936,27963.0,27960.0,0.57897326]
[1680545832430,0.022545,27962.0,27960.0,0.57903326]
[1680545832687,0.037551,27961.0,27960.0,0.57903326]
[1680545832930,0.059587,27961.0,27960.0,0.20018]
[1680545833156,0.05780064,27961.0,27960.0,0.2]
[1680545834261,0.059587,27961.0,27960.0,0.2]
[1680545834953,0.077587,27961.0,27960.0,0.2]
[1680545835187,0.07580058,27961.0,27960.0,0.2]
[1680545837463,0.040036,27961.0,27960.0,0.2]
[1680545837687,0.030517,27961.0,27960.0,0.2]
[1680545837912,0.018,27961.0,27960.0,0.2]
[1680545838599,0.052392,27961.0,27960.0,0.2]
[1680545841519,0.030517,27961.0,27960.0,0.2]
[1680545842222,0.030517,27961.0,27960.0,0.19821704]
[1680545843405,0.012517,27961.0,27960.0,0.19821704]
[1680545843627,0.061107,27961.0,27960.0,0.19821704]
[1680545843854,0.047323,27961.0,27960.0,0.19821704]
[1680545844306,0.025,27961.0,27960.0,0.220415]
[1680545844518,0.037517,27961.0,27960.0,0.220415]
[1680545844764,0.037517,27961.0,27960.0,0.59751256]
[1680545845269,0.03616042,27961.0,27960.0,0.23323156]
[1680545845579,0.02364342,27961.0,27960.0,0.19724166]
[1680545845833,0.03616042,27961.0,27960.0,0.59724166]
[1680545846256,0.03503473,27961.0,27960.0,0.19724166]
[1680545846933,0.03503473,27961.0,27959.0,0.00012]
[1680545847157,0.03503473,27961.0,27958.0,0.1088826]
[1680545847822,0.012516,27963.0,27960.0,0.19724166]
[1680545848088,0.018,27961.0,27960.0,0.19724166]
[1680545848273,0.018,27961.0,27960.0,0.23344266]
[1680545848962,0.012516,27963.0,27960.0,0.23344266]
[1680545849178,0.012516,27963.0,27961.0,0.036071]
[1680545849445,0.012516,27963.0,27961.0,0.035881]
[1680545849664,0.025031,27965.0,27961.0,0.035881]
[1680545849887,0.012516,27963.0,27962.0,0.4]
[1680545850334,0.013516,27963.0,27962.0,0.4]
[1680545850554,0.012516,27963.0,27962.0,0.4]
[1680545850765,0.026031,27965.0,27962.0,0.4]
[1680545850977,0.012516,27964.0,27962.0,0.4]
[1680545851836,0.012516,27964.0,27962.0,0.402]
[1680545852273,0.012516,27964.0,27962.0,0.4]
[1680545852505,0.012516,27964.0,27962.0,0.402]
[1680545852731,0.012516,27964.0,27963.0,0.03767]
[1680545852956,0.012515,27965.0,27963.0,0.23491166]
[1680545853189,0.012515,27966.0,27963.0,0.19724166]
[1680545853861,0.005,27965.0,27964.0,0.4]
[1680545854084,0.005,27965.0,27964.0,0.521518]
[1680545854308,0.005,27965.0,27964.0,0.87622856]
[1680545854533,0.005,27965.0,27964.0,0.79092856]
[1680545854779,0.012514,27969.0,27967.0,0.19724166]
[1680545855015,0.012693,27971.0,27967.0,0.19724166]
[1680545855248,0.012693,27971.0,27967.0,0.55195222]
[1680545855468,0.012513,27971.0,27967.0,0.92785222]
[1680545855698,0.012513,27971.0,27968.0,0.4]
[1680545855980,0.005,27969.0,27968.0,0.4]
[1680545856215,0.012513,27970.0,27968.0,0.4]
[1680545856458,0.012513,27970.0,27968.0,0.75471056]
[1680545856902,0.012513,27970.0,27968.0,0.75671056]
[1680545857595,0.012513,27970.0,27968.0,0.35471056]
[1680545857814,0.012513,27970.0,27968.0,0.35671056]
[1680545858049,0.012513,27970.0,27968.0,0.002]
[1680545858287,0.022832,27969.0,27967.0,0.19724166]
[1680545858566,0.012514,27968.0,27967.0,0.19724166]
[1680545859560,0.013514,27968.0,27967.0,0.20524166]
[1680545860647,0.013514,27968.0,27967.0,0.008]
[1680545860648,0.11853744,27968.0,27967.0,0.008]
[1680545860951,0.02608434,27968.0,27964.0,0.19724166]
[1680545861187,0.01627234,27968.0,27967.0,0.008]
[1680545861404,0.02027234,27968.0,27967.0,0.001]
[1680545861840,0.01527234,27968.0,27966.0,0.4]
[1680545862064,0.00375834,27968.0,27966.0,0.75471056]
[1680545862496,0.012513,27970.0,27966.0,1.13061056]
[1680545862498,0.005,27968.0,27967.0,0.001]
[1680545862722,0.005,27968.0,27967.0,0.036983]
[1680545862956,0.005,27968.0,27967.0,0.96483522]
[1680545863185,0.005,27968.0,27967.0,0.97443522]
[1680545863426,0.00275834,27974.0,27970.0,0.19724166]
[1680545863677,0.00275834,27974.0,27972.0,0.4]
[1680545863909,0.0120318,27976.0,27972.0,0.75471056]
[1680545864245,0.01526834,27976.0,27972.0,0.75471056]
[1680545864493,0.002,27974.0,27973.0,0.73061056]
[1680545865076,0.01726834,27976.0,27974.0,0.7759]
[1680545865347,0.01726834,27976.0,27975.0,0.35471056]
[1680545865348,0.01526834,27976.0,27975.0,0.35471056]
[1680545865627,0.00275834,27976.0,27975.0,0.35471056]
[1680545866092,0.00275834,27976.0,27971.0,0.00018]
[1680545866093,0.00275834,27972.0,27971.0,0.00018]
[1680545866320,0.00275834,27972.0,27961.0,0.00018]
[1680545866321,0.00275834,27963.0,27961.0,0.00018]
[1680545866551,0.00275834,27963.0,27958.0,0.0235826]
[1680545866552,0.17944581,27962.0,27960.0,0.4]
[1680545866777,0.17944581,27962.0,27960.0,0.75489056]
[1680545867004,0.17932609,27962.0,27960.0,0.35489056]
[1680545867469,0.037549,27962.0,27960.0,0.35471056]
[1680545867728,0.038549,27962.0,27960.0,0.36471056]
[1680545868206,0.037549,27962.0,27960.0,0.35471056]
[1680545869144,0.037549,27962.0,27960.0,0.75471056]
[1680545869387,0.038549,27962.0,27960.0,0.76271056]
[1680545869613,0.037549,27962.0,27960.0,0.75471056]
[1680545869838,0.037549,27962.0,27960.0,0.76263409]
[1680545869839,0.038549,27962.0,27960.0,0.76263409]
[1680545870077,0.036598,27962.0,27961.0,0.4]
[1680545870304,0.037598,27962.0,27961.0,0.4]
[1680545870533,0.036598,27962.0,27961.0,0.4]
[1680545870769,0.037598,27962.0,27961.0,0.4]
[1680545871001,0.036598,27962.0,27961.0,0.4]
[1680545871236,0.036598,27962.0,27961.0,0.402]
[1680545871964,0.30548325,27962.0,27961.0,0.002]
[1680545872201,0.32882425,27962.0,27959.0,1.00018]
[1680545872438,0.30965023,27962.0,27961.0,0.002]
[1680545872666,0.30965023,27962.0,27959.0,1.00018]
[1680545872667,0.33226923,27962.0,27959.0,1.00018]
[1680545872923,0.32765023,27962.0,27961.0,0.001]
[1680545873164,0.00275834,27960.0,27959.0,1.00018]
[1680545873396,0.17548134,27960.0,27959.0,1.00118]
[1680545873632,0.19844934,27960.0,27959.0,1.00118]
[1680545873870,0.19844934,27960.0,27959.0,1.00018]
[1680545875706,0.42021111,27960.0,27959.0,1.00118]
[1680545875708,0.50551111,27960.0,27959.0,1.00118]
[1680545875965,0.51401111,27960.0,27959.0,1.00118]
[1680545876196,0.51401111,27960.0,27959.0,1.001]
[1680545876197,0.51419111,27960.0,27959.0,1.001]
[1680545876656,0.48719111,27960.0,27959.0,1.0]
[1680545876883,0.51419111,27960.0,27959.0,1.0]
[1680545877564,0.71419111,27960.0,27959.0,1.0]
[1680545877781,0.49432818,27960.0,27959.0,1.0]
[1680545878029,0.79432818,27960.0,27959.0,1.0]
[1680545880573,1.19432818,27960.0,27959.0,1.0]
[1680545881039,1.51862818,27960.0,27959.0,1.0]
[1680545881507,2.97800941,27960.0,27959.0,1.0]
[1680545881731,3.30559762,27960.0,27959.0,1.0]
[1680545881976,3.16087762,27960.0,27959.0,1.0]
[1680545882201,3.33253762,27960.0,27959.0,1.0]
[1680545882429,3.33259762,27960.0,27959.0,0.9995652]
[1680545882656,3.30559762,27960.0,27959.0,0.9995052]
[1680545882883,3.33253762,27960.0,27959.0,0.9995052]
[1680545883652,2.93253762,27960.0,27959.0,0.9995052]
[1680545883887,3.11135762,27960.0,27959.0,0.9995052]
[1680545885223,2.61629762,27960.0,27959.0,0.9995052]
[1680545886323,2.60913762,27960.0,27959.0,0.9995052]
[1680545886793,3.42152879,27960.0,27959.0,0.9995052]
[1680545887041,4.68681043,27960.0,27959.0,0.73865276]
[1680545887267,5.6948898,27960.0,27959.0,0.73865276]
[1680545887490,5.40030148,27960.0,27959.0,0.73865276]
[1680545887721,5.20231581,27960.0,27959.0,0.73865276]
[1680545887952,5.1866001,27960.0,27959.0,0.73865276]
[1680545888178,5.15402721,27960.0,27959.0,0.73865276]
[1680545888465,3.6897001,27960.0,27959.0,0.73865276]
[1680545888694,2.96376638,27960.0,27959.0,0.73865276]
[1680545888938,1.67583698,27960.0,27959.0,0.73883276]
[1680545890110,1.35217698,27960.0,27959.0,0.73883276]
[1680545890388,0.45974818,27960.0,27959.0,0.73883276]
[1680545890660,0.31524818,27960.0,27959.0,0.73883276]
[1680545890983,0.28824818,27960.0,27959.0,0.73883276]
[1680545891186,0.31524818,27960.0,27959.0,0.73883276]
[1680545891467,0.28824818,27960.0,27959.0,0.73883276]
[1680545892804,0.31524818,27960.0,27959.0,0.73883276]
[1680545893076,2.41358634,27960.0,27959.0,0.73865276]
[1680545893345,0.41841698,27960.0,27959.0,0.73865276]
[1680545893838,0.40054818,27960.0,27959.0,0.73877276]
[1680545893842,2.5942883,27960.0,27959.0,0.73883276]
[1680545894106,3.54868392,27960.0,27959.0,0.73883276]
[1680545894656,4.37268392,27960.0,27959.0,0.73883276]
[1680545895220,6.36281964,27960.0,27959.0,0.28796101]
[1680545895730,5.88993964,27960.0,27959.0,0.28790101]
[1680545895732,5.77765713,27960.0,27959.0,0.28790101]
[1680545896005,3.87286392,27960.0,27959.0,0.28790101]
[1680545896283,3.87286392,27960.0,27959.0,0.28808101]
[1680545896284,3.09845729,27960.0,27959.0,0.28808101]
[1680545896563,2.71829729,27960.0,27959.0,0.28808101]
[1680545896843,1.68887149,27960.0,27959.0,0.28808101]
[1680545897402,1.87029444,27960.0,27959.0,0.28808101]
[1680545897915,2.04195444,27960.0,27959.0,0.28808101]
[1680545898184,1.87879444,27960.0,27959.0,0.28808101]
[1680545898457,1.85179444,27960.0,27959.0,0.28808101]
[1680545898748,1.87879444,27960.0,27959.0,0.28808101]
[1680545899027,2.25469444,27960.0,27959.0,0.28808101]
[1680545899249,2.33999444,27960.0,27959.0,0.28808101]
[1680545899510,2.51165444,27960.0,27959.0,0.28808101]
[1680545899744,3.56928324,27960.0,27959.0,0.28808101]
[1680545900195,3.24408324,27960.0,27959.0,0.28808101]
[1680545900878,3.42295324,27960.0,27959.0,0.28808101]
[1680545901104,3.39613324,27960.0,27959.0,0.26799721]
[1680545901329,3.42313324,27960.0,27959.0,0.26799721]
[1680545901595,3.39613324,27960.0,27959.0,0.26799721]
[1680545901829,3.42313324,27960.0,27959.0,0.26799721]
[1680545902079,3.42313324,27960.0,27959.0,0.10891294]
[1680545902310,3.39595324,27960.0,27959.0,0.10891294]
[1680545902545,3.42295324,27960.0,27959.0,0.10891294]
[1680545902773,5.32747243,27960.0,27959.0,0.10891294]
[1680545902993,4.11562114,27960.0,27959.0,0.10891294]
[1680545903232,2.36049149,27960.0,27959.0,0.10891294]
[1680545903695,1.77469149,27960.0,27959.0,0.10891294]
[1680545903931,1.42807265,27960.0,27959.0,0.10891294]
[1680545904238,1.39831431,27960.0,27959.0,0.10891294]
[1680545904464,1.35020831,27960.0,27959.0,0.10909294]
[1680545904711,1.31069131,27960.0,27959.0,0.10909294]
[1680545904946,1.32769131,27960.0,27959.0,0.10909294]
[1680545905168,1.30472331,27960.0,27959.0,0.10909294]
[1680545905851,1.28772331,27960.0,27959.0,0.10909294]
[1680545906086,1.30472331,27960.0,27959.0,0.10909294]
[1680545906307,0.017,27960.0,27959.0,0.67509466]
[1680545906745,0.017,27960.0,27959.0,0.71031366]
[1680545906964,0.017,27960.0,27959.0,1.44092422]
[1680545907463,0.21042051,27969.0,27962.0,0.57314166]
[1680545907464,0.025028,27969.0,27962.0,0.57314166]
[1680545907688,0.025028,27969.0,27964.0,0.4607]
[1680545907689,1.29971522,27968.0,27964.0,0.4607]
[1680545907914,1.28720122,27967.0,27966.0,0.4]
[1680545908152,1.28720122,27968.0,27966.0,0.40018]
[1680545908363,0.012514,27969.0,27966.0,0.40018]
[1680545908573,0.015514,27969.0,27966.0,0.40018]
[1680545908782,0.012514,27969.0,27966.0,0.40018]
[1680545909009,0.001,27967.0,27966.0,0.40618]
[1680545909275,0.012513,27970.0,27967.0,0.4]
[1680545909471,0.012513,27970.0,27967.0,0.4853]
[1680545909694,0.012513,27970.0,27967.0,0.0853]
[1680545909918,0.012513,27970.0,27968.0,0.19724166]
[1680545910145,0.012513,27971.0,27968.0,0.19724166]
[1680545910377,1.28709006,27970.0,27968.0,0.19724166]
[1680545910599,0.022661,27969.0,27968.0,0.19224166]
[1680545910819,1.28727006,27970.0,27968.0,0.19224166]
[1680545911055,1.28727006,27970.0,27968.0,0.19724166]
[1680545911277,0.00018,27970.0,27968.0,0.19224166]
[1680545911503,0.012513,27971.0,27968.0,0.19224166]
[1680545911732,0.004,27969.0,27968.0,0.19324166]
[1680545912025,0.012513,27971.0,27968.0,0.19224166]
[1680545912244,0.03278234,27973.0,27968.0,0.19224166]
[1680545912468,0.012513,27971.0,27968.0,0.19224166]
[1680545912696,0.022514,27970.0,27968.0,0.19224166]
[1680545912916,0.002,27970.0,27968.0,0.19224166]
[1680545913137,0.012512,27972.0,27968.0,0.19324166]
[1680545913578,0.012512,27972.0,27969.0,0.4]
[1680545913801,0.002,27970.0,27969.0,1.13061056]
[1680545914012,0.012512,27973.0,27969.0,1.25195756]
[1680545914228,0.002,27972.0,27971.0,0.27734166]